[Event "2026 Biel Blitz Open"]
[Site "Biel, CH"]
[Date "2026.07.19"]
[Round "11"]
[White "Vedant Nayudu"]
[Black "Mikavica, Mirko"]
[Result "1/2-1/2"]
[Board "49"]
[TimeControl "180+2"]
[WhiteFideId "33369780"]
[BlackFideId "908657"]
[WhiteElo "1732"]
[BlackElo "2015"]
[WhiteClock "0:00:04"]
[BlackClock "0:00:48"]
[Variant "Standard"]
[EndDate "2026.07.19"]
[EndTime "15:30:36"]

1. e4 {[%clk 0:03:03]}  d6 {[%clk 0:03:04]} 2. d4 {[%clk 0:03:04]}  Nf6 {[%clk 0:03:05]} 3. Nc3 {[%clk 0:03:05]}  Nbd7 {[%clk 0:03:05]}
4. f4 {[%clk 0:03:04]}  e5 {[%clk 0:03:07]} 5. Nf3 {[%clk 0:03:07]}  exd4 {[%clk 0:03:02]} 6. Qxd4 {[%clk 0:03:07]}  c6 {[%clk 0:03:04]}
7. Be3 {[%clk 0:02:58]}  d5 {[%clk 0:03:04]} 8. exd5 {[%clk 0:02:55]}  Bc5 {[%clk 0:03:03]} 9. Qd2 {[%clk 0:02:50]}  Qe7 {[%clk 0:02:29]}
10. dxc6 {[%clk 0:00:14]}  bxc6 {[%clk 0:01:58]} 11. Nd1 {[%clk 0:00:16]}  Nd5 {[%clk 0:01:49]} 12. Kf2 {[%clk 0:00:14]}  N7f6 {[%clk 0:01:43]}
13. Bd3 {[%clk 0:00:05]}  O-O {[%clk 0:01:38]} 14. h3 {[%clk 0:00:06]}  Nxf4 {[%clk 0:01:29]} 15. Bxc5 {[%clk 0:00:04]}  Qxc5+ {[%clk 0:01:30]}
16. Qe3 {[%clk 0:00:05]}  Qxe3+ {[%clk 0:01:24]} 17. Nxe3 {[%clk 0:00:03]}  Nxd3+ {[%clk 0:01:22]} 18. cxd3 {[%clk 0:00:08]}  Ba6 {[%clk 0:01:22]}
19. Rhd1 {[%clk 0:00:08]}  Rfd8 {[%clk 0:01:23]} 20. d4 {[%clk 0:00:09]}  Rab8 {[%clk 0:01:22]} 21. b3 {[%clk 0:00:10]}  Ne4+ {[%clk 0:01:21]}
22. Kg1 {[%clk 0:00:11]}  Nc3 {[%clk 0:01:21]} 23. Re1 {[%clk 0:00:12]}  Ne2+ {[%clk 0:01:18]} 24. Kf2 {[%clk 0:00:13]}  Nxd4 {[%clk 0:01:19]}
25. Nxd4 {[%clk 0:00:13]}  Rxd4 {[%clk 0:01:21]} 26. Rac1 {[%clk 0:00:14]}  Rd2+ {[%clk 0:01:14]} 27. Kg1 {[%clk 0:00:15]}  Bb7 {[%clk 0:01:09]}
28. Rc2 {[%clk 0:00:15]}  Rd7 {[%clk 0:01:03]} 29. Nc4 {[%clk 0:00:14]}  f6 {[%clk 0:00:59]} 30. Na5 {[%clk 0:00:14]}  Rc7 {[%clk 0:00:52]}
31. Rec1 {[%clk 0:00:14]}  Rbc8 {[%clk 0:00:41]} 32. Nxb7 {[%clk 0:00:14]}  Rxb7 {[%clk 0:00:43]} 33. Rxc6 {[%clk 0:00:15]}  Rxc6 {[%clk 0:00:42]}
34. Rxc6 {[%clk 0:00:17]}  Kf7 {[%clk 0:00:40]} 35. Kf2 {[%clk 0:00:16]}  Rd7 {[%clk 0:00:39]} 36. Ke3 {[%clk 0:00:16]}  h5 {[%clk 0:00:37]}
37. Rc5 {[%clk 0:00:16]}  g5 {[%clk 0:00:40]} 38. a4 {[%clk 0:00:16]}  Rb7 {[%clk 0:00:36]} 39. Rc3 {[%clk 0:00:10]}  Ke6 {[%clk 0:00:36]}
40. Rc6+ {[%clk 0:00:10]}  Ke5 {[%clk 0:00:34]} 41. Rc5+ {[%clk 0:00:11]}  Kd6 {[%clk 0:00:34]} 42. Rc3 {[%clk 0:00:11]}  Kd5 {[%clk 0:00:32]}
43. Kd3 {[%clk 0:00:08]}  f5 {[%clk 0:00:31]} 44. a5 {[%clk 0:00:07]}  Rb5 {[%clk 0:00:30]} 45. Rc8 {[%clk 0:00:05]}  Rxa5 {[%clk 0:00:29]}
46. Rg8 {[%clk 0:00:05]}  g4 {[%clk 0:00:29]} 47. Rg5 {[%clk 0:00:06]}  Ke5 {[%clk 0:00:15]} 48. Rxh5 {[%clk 0:00:07]}  gxh3 {[%clk 0:00:15]}
49. Rxh3 {[%clk 0:00:06]}  Rb5 {[%clk 0:00:16]} 50. Kc4 {[%clk 0:00:09]}  Rb7 {[%clk 0:00:12]} 51. Rh6 {[%clk 0:00:09]}  Kf4 {[%clk 0:00:15]}
52. b4 {[%clk 0:00:09]}  Ke3 {[%clk 0:00:15]} 53. Re6+ {[%clk 0:00:10]}  Kf2 {[%clk 0:00:16]} 54. Rf6 {[%clk 0:00:11]}  Kxg2 {[%clk 0:00:17]}
55. Rxf5 {[%clk 0:00:12]}  Kg3 {[%clk 0:00:18]} 56. Kc5 {[%clk 0:00:13]}  Kg4 {[%clk 0:00:18]} 57. Rf8 {[%clk 0:00:14]}  Rc7+ {[%clk 0:00:16]}
58. Kb5 {[%clk 0:00:10]}  Rb7+ {[%clk 0:00:17]} 59. Ka5 {[%clk 0:00:11]}  Kg5 {[%clk 0:00:18]} 60. b5 {[%clk 0:00:12]}  Kg6 {[%clk 0:00:19]}
61. Ka6 {[%clk 0:00:13]}  Rb6+ {[%clk 0:00:21]} 62. Ka5 {[%clk 0:00:13]}  Rb7 {[%clk 0:00:22]} 63. Rf2 {[%clk 0:00:13]}  Kg7 {[%clk 0:00:23]}
64. Rf3 {[%clk 0:00:11]}  Kg8 {[%clk 0:00:22]} 65. Rd3 {[%clk 0:00:08]}  Kf7 {[%clk 0:00:20]} 66. Re3 {[%clk 0:00:06]}  Kf8 {[%clk 0:00:18]}
67. Re6 {[%clk 0:00:07]}  Kf7 {[%clk 0:00:24]} 68. Rh6 {[%clk 0:00:07]}  Ke8 {[%clk 0:00:19]} 69. Rh8+ {[%clk 0:00:08]}  Kd7 {[%clk 0:00:21]}
70. Rh7+ {[%clk 0:00:05]}  Kc8 {[%clk 0:00:26]} 71. Rh8+ {[%clk 0:00:07]}  Kc7 {[%clk 0:00:28]} 72. Rh6 {[%clk 0:00:05]}  Kc8 {[%clk 0:00:29]}
73. Rc6+ {[%clk 0:00:06]}  Kb8 {[%clk 0:00:31]} 74. Ka6 {[%clk 0:00:07]}  Rh7 {[%clk 0:00:28]} 75. Re6 {[%clk 0:00:06]}  Rh8 {[%clk 0:00:31]}
76. Rg6 {[%clk 0:00:05]}  Rc8 {[%clk 0:00:32]} 77. Rc6 {[%clk 0:00:05]}  Rd8 {[%clk 0:00:31]} 78. Re6 {[%clk 0:00:05]}  Rc8 {[%clk 0:00:35]}
79. Ka5 {[%clk 0:00:05]}  Kb7 {[%clk 0:00:37]} 80. Re7+ {[%clk 0:00:07]}  Kb8 {[%clk 0:00:38]} 81. Ka6 {[%clk 0:00:06]}  Rh8 {[%clk 0:00:39]}
82. Rxa7 {[%clk 0:00:05]}  Rh1 {[%clk 0:00:34]} 83. Rb7+ {[%clk 0:00:05]}  Ka8 {[%clk 0:00:38]} 84. Rf7 {[%clk 0:00:05]}  Rh8 {[%clk 0:00:39]}
85. b6 {[%clk 0:00:05]}  Rd8 {[%clk 0:00:37]} 86. Rc7 {[%clk 0:00:05]}  Rh8 {[%clk 0:00:42]} 87. Re7 {[%clk 0:00:04]}  Rg8 {[%clk 0:00:41]}
88. Rd7 {[%clk 0:00:05]}  Rh8 {[%clk 0:00:45]} 89. Ra7+ {[%clk 0:00:06]}  Kb8 {[%clk 0:00:47]} 90. Rb7+ {[%clk 0:00:08]}  Ka8 {[%clk 0:00:48]}
91. Rc7 {[%clk 0:00:08]}  Rg8 {[%clk 0:00:49]} 92. Rh7 {[%clk 0:00:06]}  Rf8 {[%clk 0:00:51]} 93. Kb5 {[%clk 0:00:06]}  Rf5+ {[%clk 0:00:51]}
94. Kc6 {[%clk 0:00:07]}  Rf6+ {[%clk 0:00:51]} 95. Kc7 {[%clk 0:00:07]}  Rf8 {[%clk 0:00:51]} 96. b7+ {[%clk 0:00:05]}  Ka7 {[%clk 0:00:52]}
97. Rd7 {[%clk 0:00:04]}  Rb8 {[%clk 0:00:51]} 98. Kc6 {[%clk 0:00:04]}  Rh8 {[%clk 0:00:51]} 99. Rd4 {[%clk 0:00:04]}  Rh7 {[%clk 0:00:48]} 1/2-1/2

[Event "2026 Biel Blitz Open"]
[Site "Biel, CH"]
[Date "2026.07.19"]
[Round "11"]
[White "Valsecchi, Luca"]
[Black "Boner, Timm"]
[Result "0-1"]
[Board "51"]
[TimeControl "180+2"]
[WhiteFideId "1368524"]
[BlackFideId "1330039"]
[WhiteElo "1869"]
[BlackElo "1705"]
[WhiteClock "0:00:47"]
[BlackClock "0:00:58"]
[Variant "Standard"]
[EndDate "2026.07.19"]
[EndTime "15:30:23"]

1. Nf3 {[%clk 0:03:03]}  Nc6 {[%clk 0:03:03]} 2. g3 {[%clk 0:03:03]}  e5 {[%clk 0:03:04]} 3. Bg2 {[%clk 0:03:04]}  Nf6 {[%clk 0:03:05]}
4. O-O {[%clk 0:03:03]}  d5 {[%clk 0:03:06]} 5. d3 {[%clk 0:03:04]}  Bd6 {[%clk 0:03:06]} 6. Nbd2 {[%clk 0:03:01]}  O-O {[%clk 0:03:06]}
7. e4 {[%clk 0:03:00]}  dxe4 {[%clk 0:03:03]} 8. dxe4 {[%clk 0:02:59]}  Bc5 {[%clk 0:03:01]} 9. Qe2 {[%clk 0:02:52]}  Re8 {[%clk 0:03:01]}
10. Nb3 {[%clk 0:02:49]}  Bb6 {[%clk 0:02:59]} 11. Rd1 {[%clk 0:02:44]}  Qe7 {[%clk 0:02:27]} 12. a4 {[%clk 0:02:43]}  Rd8 {[%clk 0:02:27]}
13. Be3 {[%clk 0:02:23]}  Bg4 {[%clk 0:02:25]} 14. h3 {[%clk 0:02:10]}  Bxf3 {[%clk 0:02:24]} 15. Bxf3 {[%clk 0:02:11]}  Nd4 {[%clk 0:02:15]}
16. Nxd4 {[%clk 0:01:55]}  exd4 {[%clk 0:02:15]} 17. Bg5 {[%clk 0:01:53]}  h6 {[%clk 0:02:14]} 18. Bf4 {[%clk 0:01:41]}  g5 {[%clk 0:02:12]}
19. Bd2 {[%clk 0:01:27]}  c5 {[%clk 0:02:10]} 20. a5 {[%clk 0:01:25]}  Bc7 {[%clk 0:02:07]} 21. a6 {[%clk 0:01:14]}  Qe5 {[%clk 0:02:01]}
22. axb7 {[%clk 0:01:07]}  Rab8 {[%clk 0:02:02]} 23. Rxa7 {[%clk 0:01:06]}  c4 {[%clk 0:01:56]} 24. Qxc4 {[%clk 0:01:00]}  Bb6 {[%clk 0:01:50]}
25. Ra8 {[%clk 0:00:52]}  Rxa8 {[%clk 0:01:45]} 26. bxa8=Q {[%clk 0:00:50]}  Rxa8 {[%clk 0:01:46]} 27. Qc6 {[%clk 0:00:41]}  Rb8 {[%clk 0:01:38]}
28. Ra1 {[%clk 0:00:33]}  Kg7 {[%clk 0:01:38]} 29. Ra8 {[%clk 0:00:32]}  Rxa8 {[%clk 0:01:37]} 30. Qxa8 {[%clk 0:00:33]}  h5 {[%clk 0:01:33]}
31. Qc6 {[%clk 0:00:32]}  Bd8 {[%clk 0:01:31]} 32. Bb4 {[%clk 0:00:27]}  g4 {[%clk 0:01:28]} 33. hxg4 {[%clk 0:00:28]}  hxg4 {[%clk 0:01:26]}
34. Bg2 {[%clk 0:00:29]}  Be7 {[%clk 0:01:13]} 35. Bxe7 {[%clk 0:00:29]}  Qxe7 {[%clk 0:01:14]} 36. Qc4 {[%clk 0:00:27]}  Qe5 {[%clk 0:01:12]}
37. b4 {[%clk 0:00:25]}  Nxe4 {[%clk 0:01:12]} 38. Bxe4 {[%clk 0:00:26]}  Qxe4 {[%clk 0:01:12]} 39. Qf1 {[%clk 0:00:17]}  Qxc2 {[%clk 0:01:10]}
40. b5 {[%clk 0:00:13]}  d3 {[%clk 0:01:09]} 41. b6 {[%clk 0:00:06]}  d2 {[%clk 0:01:09]} 42. Qa1+ {[%clk 0:00:05]}  Kg8 {[%clk 0:01:03]}
43. Qa8+ {[%clk 0:00:47]}  Kg7 {[%clk 0:00:58]} 0-1

[Event "2026 Biel Blitz Open"]
[Site "Biel, CH"]
[Date "2026.07.19"]
[Round "11"]
[White "Amsellem, Daniel"]
[Black "Berezovskii, Arina"]
[Result "0-1"]
[Board "52"]
[TimeControl "180+2"]
[WhiteFideId "1363522"]
[BlackFideId "34449850"]
[WhiteElo "1723"]
[BlackElo "1851"]
[BlackTitle "WCM"]
[WhiteClock "0:00:40"]
[BlackClock "0:00:42"]
[Variant "Standard"]
[EndDate "2026.07.19"]
[EndTime "15:29:08"]

1. c4 {[%clk 0:03:03]}  e6 {[%clk 0:03:04]} 2. g3 {[%clk 0:03:03]}  Nf6 {[%clk 0:03:03]} 3. Bg2 {[%clk 0:03:03]}  d5 {[%clk 0:03:04]}
4. d4 {[%clk 0:03:03]}  Bb4+ {[%clk 0:03:00]} 5. Bd2 {[%clk 0:03:01]}  Bxd2+ {[%clk 0:03:00]} 6. Nxd2 {[%clk 0:03:01]}  O-O {[%clk 0:03:00]}
7. Ngf3 {[%clk 0:03:01]}  b6 {[%clk 0:02:54]} 8. O-O {[%clk 0:02:59]}  Bb7 {[%clk 0:02:54]} 9. Qc2 {[%clk 0:02:48]}  Ne4 {[%clk 0:02:37]}
10. Nxe4 {[%clk 0:02:38]}  dxe4 {[%clk 0:02:38]} 11. Ne5 {[%clk 0:02:33]}  f5 {[%clk 0:02:32]} 12. Rfd1 {[%clk 0:02:30]}  Nd7 {[%clk 0:02:23]}
13. Nxd7 {[%clk 0:02:12]}  Qxd7 {[%clk 0:02:23]} 14. e3 {[%clk 0:02:05]}  Qe7 {[%clk 0:02:19]} 15. Rac1 {[%clk 0:02:04]}  Rfd8 {[%clk 0:02:02]}
16. c5 {[%clk 0:01:55]}  Bd5 {[%clk 0:01:55]} 17. b4 {[%clk 0:01:51]}  a5 {[%clk 0:01:34]} 18. b5 {[%clk 0:01:45]}  Rac8 {[%clk 0:01:27]}
19. c6 {[%clk 0:01:45]}  Qb4 {[%clk 0:01:19]} 20. a4 {[%clk 0:01:43]}  Bb3 {[%clk 0:01:13]} 21. Qc3 {[%clk 0:01:19]}  Qxc3 {[%clk 0:01:09]}
22. Rxc3 {[%clk 0:01:19]}  Bxd1 {[%clk 0:01:10]} 23. Rc4 {[%clk 0:01:05]}  Bb3 {[%clk 0:01:08]} 24. Rc3 {[%clk 0:01:05]}  Bxa4 {[%clk 0:01:07]}
25. Bf1 {[%clk 0:01:06]}  Kf7 {[%clk 0:00:59]} 26. Bc4 {[%clk 0:01:04]}  Bd1 {[%clk 0:00:54]} 27. Kf1 {[%clk 0:00:59]}  a4 {[%clk 0:00:52]}
28. Rc1 {[%clk 0:00:50]}  Bb3 {[%clk 0:00:50]} 29. Be2 {[%clk 0:00:48]}  a3 {[%clk 0:00:49]} 30. Ra1 {[%clk 0:00:46]}  Ra8 {[%clk 0:00:49]}
31. Ke1 {[%clk 0:00:46]}  Ra5 {[%clk 0:00:48]} 32. Kd2 {[%clk 0:00:46]}  Rda8 {[%clk 0:00:48]} 33. Kc3 {[%clk 0:00:47]}  Bd5 {[%clk 0:00:47]}
34. h4 {[%clk 0:00:43]}  a2 {[%clk 0:00:47]} 35. f4 {[%clk 0:00:43]}  exf3 {[%clk 0:00:43]} 36. Bf1 {[%clk 0:00:40]}  Ra3+ {[%clk 0:00:42]} 0-1

[Event "2026 Biel Blitz Open"]
[Site "Biel, CH"]
[Date "2026.07.19"]
[Round "11"]
[White "Koehler, Noe"]
[Black "Zumbrunn, Simon"]
[Result "1-0"]
[Board "53"]
[TimeControl "180+2"]
[WhiteFideId "1362488"]
[BlackFideId "1364146"]
[WhiteElo "1639"]
[BlackElo "1802"]
[WhiteClock "0:00:56"]
[BlackClock "0:01:17"]
[Variant "Standard"]
[EndDate "2026.07.19"]
[EndTime "15:21:44"]

1. e4 {[%clk 0:03:04]}  e5 {[%clk 0:03:03]} 2. Nf3 {[%clk 0:03:04]}  Nc6 {[%clk 0:03:05]} 3. d4 {[%clk 0:03:05]}  exd4 {[%clk 0:03:05]}
4. Bc4 {[%clk 0:03:06]}  Nf6 {[%clk 0:03:06]} 5. e5 {[%clk 0:03:07]}  d5 {[%clk 0:03:07]} 6. Bb5 {[%clk 0:03:09]}  Ne4 {[%clk 0:03:09]}
7. Nxd4 {[%clk 0:03:08]}  Bd7 {[%clk 0:03:10]} 8. Bxc6 {[%clk 0:03:08]}  bxc6 {[%clk 0:03:11]} 9. O-O {[%clk 0:03:09]}  Bc5 {[%clk 0:03:07]}
10. f3 {[%clk 0:03:06]}  Ng5 {[%clk 0:03:08]} 11. f4 {[%clk 0:03:08]}  Ne6 {[%clk 0:03:07]} 12. Be3 {[%clk 0:03:06]}  g6 {[%clk 0:03:01]}
13. Qd3 {[%clk 0:02:49]}  Bb6 {[%clk 0:02:56]} 14. Nxe6 {[%clk 0:02:42]}  Bxe6 {[%clk 0:02:53]} 15. Nd2 {[%clk 0:02:31]}  O-O {[%clk 0:02:46]}
16. c3 {[%clk 0:02:28]}  Bf5 {[%clk 0:02:46]} 17. Qe2 {[%clk 0:02:25]}  d4 {[%clk 0:02:47]} 18. cxd4 {[%clk 0:02:21]}  Bxd4 {[%clk 0:02:48]}
19. Rad1 {[%clk 0:02:18]}  Bc2 {[%clk 0:02:02]} 20. Rc1 {[%clk 0:02:04]}  Ba4 {[%clk 0:02:03]} 21. Qf2 {[%clk 0:01:51]}  Bxb2 {[%clk 0:01:48]}
22. Rb1 {[%clk 0:01:24]}  Bc3 {[%clk 0:01:50]} 23. Ne4 {[%clk 0:01:19]}  Ba5 {[%clk 0:01:24]} 24. Nf6+ {[%clk 0:01:19]}  Kg7 {[%clk 0:01:25]}
25. Qh4 {[%clk 0:01:10]}  Rh8 {[%clk 0:01:16]} 26. f5 {[%clk 0:01:00]}  Bb6 {[%clk 0:01:17]} 27. Qh6# {[%clk 0:00:56]} 1-0

[Event "2026 Biel Blitz Open"]
[Site "Biel, CH"]
[Date "2026.07.19"]
[Round "11"]
[White "Huettinger, Jonathan"]
[Black "Delesenne, Arthur"]
[Result "0-1"]
[Board "54"]
[TimeControl "180+2"]
[WhiteFideId "1366750"]
[BlackFideId "276979"]
[WhiteElo "1565"]
[BlackElo "1789"]
[WhiteClock "0:00:10"]
[BlackClock "0:01:06"]
[Variant "Standard"]
[EndDate "2026.07.19"]
[EndTime "15:27:42"]

1. e4 {[%clk 0:03:01]}  c6 {[%clk 0:03:04]} 2. d4 {[%clk 0:03:01]}  d5 {[%clk 0:03:05]} 3. e5 {[%clk 0:03:00]}  Bf5 {[%clk 0:03:05]}
4. Nf3 {[%clk 0:02:56]}  e6 {[%clk 0:03:06]} 5. c3 {[%clk 0:02:51]}  c5 {[%clk 0:03:06]} 6. g3 {[%clk 0:02:37]}  Nc6 {[%clk 0:03:04]}
7. Be3 {[%clk 0:02:15]}  cxd4 {[%clk 0:03:03]} 8. cxd4 {[%clk 0:02:16]}  Nge7 {[%clk 0:02:50]} 9. Bg2 {[%clk 0:01:58]}  Bg4 {[%clk 0:02:51]}
10. O-O {[%clk 0:01:51]}  Nf5 {[%clk 0:02:52]} 11. Qd3 {[%clk 0:01:38]}  Be7 {[%clk 0:02:49]} 12. Nbd2 {[%clk 0:01:38]}  O-O {[%clk 0:02:46]}
13. a3 {[%clk 0:01:39]}  a5 {[%clk 0:02:28]} 14. h3 {[%clk 0:01:33]}  Bh5 {[%clk 0:02:26]} 15. g4 {[%clk 0:01:19]}  Nxe3 {[%clk 0:02:26]}
16. Qxe3 {[%clk 0:01:16]}  Bg6 {[%clk 0:02:24]} 17. Rac1 {[%clk 0:01:15]}  Qb6 {[%clk 0:02:22]} 18. Nb3 {[%clk 0:01:12]}  Rfc8 {[%clk 0:02:08]}
19. Rc3 {[%clk 0:01:06]}  a4 {[%clk 0:02:02]} 20. Nc5 {[%clk 0:00:58]}  Bxc5 {[%clk 0:01:35]} 21. Rxc5 {[%clk 0:00:56]}  Qxb2 {[%clk 0:01:34]}
22. h4 {[%clk 0:00:51]}  Be4 {[%clk 0:01:34]} 23. Ng5 {[%clk 0:00:47]}  Bxg2 {[%clk 0:01:28]} 24. Kxg2 {[%clk 0:00:47]}  Qxd4 {[%clk 0:01:28]}
25. Rxc6 {[%clk 0:00:42]}  Qxg4+ {[%clk 0:01:22]} 26. Qg3 {[%clk 0:00:34]}  Qxg3+ {[%clk 0:01:22]} 27. fxg3 {[%clk 0:00:31]}  bxc6 {[%clk 0:01:17]}
28. Rc1 {[%clk 0:00:31]}  c5 {[%clk 0:01:17]} 29. Nf3 {[%clk 0:00:31]}  c4 {[%clk 0:01:17]} 30. Nd4 {[%clk 0:00:32]}  Rab8 {[%clk 0:01:17]}
31. Nc2 {[%clk 0:00:31]}  Rb3 {[%clk 0:01:14]} 32. Kh3 {[%clk 0:00:30]}  Rcb8 {[%clk 0:01:13]} 33. Kg4 {[%clk 0:00:29]}  Rc3 {[%clk 0:01:12]}
34. h5 {[%clk 0:00:20]}  Rb2 {[%clk 0:01:09]} 35. Kg5 {[%clk 0:00:08]}  Rcxc2 {[%clk 0:01:08]} 36. Rxc2 {[%clk 0:00:08]}  Rxc2 {[%clk 0:01:09]}
37. h6 {[%clk 0:00:09]}  gxh6+ {[%clk 0:01:07]} 38. Kxh6 {[%clk 0:00:08]}  Rg2 {[%clk 0:01:07]} 39. g4 {[%clk 0:00:08]}  Rxg4 {[%clk 0:01:06]}
40. Kh5 {[%clk 0:00:08]}  Rg3 {[%clk 0:01:06]} 41. Kh6 {[%clk 0:00:09]}  c3 {[%clk 0:01:05]} 42. Kh5 {[%clk 0:00:09]}  c2 {[%clk 0:01:06]}
43. Kh4 {[%clk 0:00:10]}  Rg6 {[%clk 0:01:06]} 0-1

[Event "2026 Biel Blitz Open"]
[Site "Biel, CH"]
[Date "2026.07.19"]
[Round "12"]
[White "Kozak, Adam"]
[Black "Bu, Xiangzhi"]
[Result "1/2-1/2"]
[Board "1"]
[TimeControl "180+2"]
[WhiteFideId "753246"]
[BlackFideId "8601445"]
[WhiteElo "2537"]
[BlackElo "2719"]
[WhiteTitle "GM"]
[BlackTitle "GM"]
[WhiteClock "0:00:05"]
[BlackClock "0:00:16"]
[Variant "Standard"]
[EndDate "2026.07.19"]
[EndTime "16:01:05"]

1. Nf3 {[%clk 0:03:03]}  c5 {[%clk 0:03:03]} 2. b3 {[%clk 0:03:03]}  Nc6 {[%clk 0:03:04]} 3. Bb2 {[%clk 0:03:04]}  d5 {[%clk 0:03:05]}
4. e3 {[%clk 0:03:03]}  Nf6 {[%clk 0:03:05]} 5. Bb5 {[%clk 0:03:04]}  Bd7 {[%clk 0:03:06]} 6. O-O {[%clk 0:03:02]}  e6 {[%clk 0:03:07]}
7. Bxc6 {[%clk 0:02:57]}  Bxc6 {[%clk 0:03:07]} 8. Ne5 {[%clk 0:02:58]}  Rc8 {[%clk 0:03:08]} 9. d3 {[%clk 0:02:56]}  Nd7 {[%clk 0:03:06]}
10. Nxc6 {[%clk 0:02:52]}  Rxc6 {[%clk 0:03:07]} 11. Nd2 {[%clk 0:02:41]}  Bd6 {[%clk 0:02:55]} 12. f4 {[%clk 0:02:04]}  O-O {[%clk 0:02:43]}
13. e4 {[%clk 0:02:04]}  d4 {[%clk 0:02:38]} 14. a4 {[%clk 0:02:03]}  Bc7 {[%clk 0:02:34]} 15. Bc1 {[%clk 0:01:46]}  a6 {[%clk 0:02:23]}
16. Qe2 {[%clk 0:01:42]}  f5 {[%clk 0:02:18]} 17. g3 {[%clk 0:01:08]}  e5 {[%clk 0:01:47]} 18. fxe5 {[%clk 0:01:04]}  fxe4 {[%clk 0:01:43]}
19. Rxf8+ {[%clk 0:01:02]}  Qxf8 {[%clk 0:01:38]} 20. Nxe4 {[%clk 0:01:02]}  Bxe5 {[%clk 0:01:23]} 21. Bd2 {[%clk 0:00:55]}  h6 {[%clk 0:00:45]}
22. Rf1 {[%clk 0:00:54]}  Qe8 {[%clk 0:00:47]} 23. Qf3 {[%clk 0:00:47]}  Nf6 {[%clk 0:00:40]} 24. Re1 {[%clk 0:00:31]}  Qd7 {[%clk 0:00:24]}
25. Nxf6+ {[%clk 0:00:21]}  Rxf6 {[%clk 0:00:18]} 26. Qe4 {[%clk 0:00:21]}  Bd6 {[%clk 0:00:09]} 27. Qd5+ {[%clk 0:00:17]}  Qf7 {[%clk 0:00:08]}
28. Re8+ {[%clk 0:00:15]}  Kh7 {[%clk 0:00:10]} 29. Qxf7 {[%clk 0:00:15]}  Rxf7 {[%clk 0:00:11]} 30. Re6 {[%clk 0:00:13]}  Rd7 {[%clk 0:00:09]}
31. Kg2 {[%clk 0:00:11]}  Kg8 {[%clk 0:00:08]} 32. Bf4 {[%clk 0:00:07]}  Bxf4 {[%clk 0:00:08]} 33. gxf4 {[%clk 0:00:08]}  Kf7 {[%clk 0:00:09]}
34. Rb6 {[%clk 0:00:10]}  Re7 {[%clk 0:00:09]} 35. Kf3 {[%clk 0:00:09]}  Re3+ {[%clk 0:00:10]} 36. Kf2 {[%clk 0:00:10]}  Re7 {[%clk 0:00:11]}
37. a5 {[%clk 0:00:10]}  g6 {[%clk 0:00:10]} 38. Kf3 {[%clk 0:00:07]}  Re3+ {[%clk 0:00:10]} 39. Kf2 {[%clk 0:00:05]}  Re7 {[%clk 0:00:11]}
40. Kg3 {[%clk 0:00:04]}  Re3+ {[%clk 0:00:09]} 41. Kg4 {[%clk 0:00:05]}  Re7 {[%clk 0:00:05]} 42. f5 {[%clk 0:00:04]}  gxf5+ {[%clk 0:00:06]}
43. Kxf5 {[%clk 0:00:05]}  Kg7 {[%clk 0:00:07]} 44. h4 {[%clk 0:00:05]}  h5 {[%clk 0:00:07]} 45. Kf4 {[%clk 0:00:04]}  Kf7 {[%clk 0:00:07]}
46. Kg5 {[%clk 0:00:03]}  Re5+ {[%clk 0:00:07]} 47. Kh6 {[%clk 0:00:05]}  Re2 {[%clk 0:00:08]} 48. Rxb7+ {[%clk 0:00:05]}  Kf6 {[%clk 0:00:09]}
49. Rb6+ {[%clk 0:00:05]}  Kf5 {[%clk 0:00:11]} 50. Rc6 {[%clk 0:00:04]}  Rxc2 {[%clk 0:00:11]} 51. b4 {[%clk 0:00:05]}  c4 {[%clk 0:00:12]}
52. dxc4 {[%clk 0:00:04]}  d3 {[%clk 0:00:14]} 53. c5 {[%clk 0:00:04]}  Rc4 {[%clk 0:00:11]} 54. Rd6 {[%clk 0:00:03]}  Rxb4 {[%clk 0:00:15]}
55. Rxd3 {[%clk 0:00:04]}  Rxh4 {[%clk 0:00:16]} 56. Rc3 {[%clk 0:00:04]}  Rb4 {[%clk 0:00:16]} 57. c6 {[%clk 0:00:05]}  Rb8 {[%clk 0:00:17]}
58. c7 {[%clk 0:00:04]}  Rc8 {[%clk 0:00:19]} 59. Rc5+ {[%clk 0:00:03]}  Ke6 {[%clk 0:00:20]} 60. Kxh5 {[%clk 0:00:03]}  Kd6 {[%clk 0:00:22]}
61. Rc3 {[%clk 0:00:04]}  Rxc7 {[%clk 0:00:23]} 62. Rb3 {[%clk 0:00:04]}  Rc5+ {[%clk 0:00:24]} 63. Kg4 {[%clk 0:00:05]}  Rxa5 {[%clk 0:00:26]}
64. Kf3 {[%clk 0:00:06]}  Kc5 {[%clk 0:00:20]} 65. Ke3 {[%clk 0:00:06]}  Kc4 {[%clk 0:00:22]} 66. Rb8 {[%clk 0:00:07]}  Rd5 {[%clk 0:00:23]}
67. Ra8 {[%clk 0:00:03]}  a5 {[%clk 0:00:23]} 68. Rc8+ {[%clk 0:00:03]}  Kb3 {[%clk 0:00:25]} 69. Rb8+ {[%clk 0:00:04]}  Kc2 {[%clk 0:00:23]}
70. Ra8 {[%clk 0:00:04]}  Rb5 {[%clk 0:00:20]} 71. Kd4 {[%clk 0:00:03]}  Kb3 {[%clk 0:00:22]} 72. Rh8 {[%clk 0:00:03]}  a4 {[%clk 0:00:18]}
73. Rh3+ {[%clk 0:00:03]}  Kb4 {[%clk 0:00:19]} 74. Rh1 {[%clk 0:00:04]}  Ka5 {[%clk 0:00:15]} 75. Kc3 {[%clk 0:00:05]}  a3 {[%clk 0:00:16]}
76. Rh8 {[%clk 0:00:05]} 1/2-1/2